[Event "Early-Titled-Tuesday-Blitz-August-29-2023"]
[Site "Chess.com"]
[Date "2023.08.29"]
[Round "8"]
[White "biostatistician"]
[Black "OlaaLa"]
[Result "1-0"]
[WhiteElo "2584"]
[BlackElo "2436"]
[TimeControl "180+1"]
[EndTime "9:28:27 PDT"]
[Termination "biostatistician won on time"]

1. d4 {[%clk 0:02:59.3]} 1... f5 {[%clk 0:02:58.7]} 2. Nf3 {[%clk 0:02:58.7]}
2... Nf6 {[%clk 0:02:58.7]} 3. g3 {[%clk 0:02:59.3]} 3... g6 {[%clk 0:02:58.9]}
4. Bg2 {[%clk 0:03:00.2]} 4... Bg7 {[%clk 0:02:59.4]} 5. O-O {[%clk 0:03:01.1]}
5... O-O {[%clk 0:02:59.7]} 6. b4 {[%clk 0:03:01.7]} 6... d6 {[%clk 0:02:59.2]}
7. Bb2 {[%clk 0:03:01.8]} 7... c6 {[%clk 0:02:59.4]} 8. Nbd2 {[%clk 0:03:01.4]}
8... a5 {[%clk 0:02:59.8]} 9. a3 {[%clk 0:03:01.1]} 9... Na6 {[%clk 0:02:57.6]}
10. c4 {[%clk 0:03:00.5]} 10... Bd7 {[%clk 0:02:55.2]} 11. Qb3 {[%clk
0:02:58.6]} 11... Kh8 {[%clk 0:02:47.6]} 12. c5 {[%clk 0:02:57]} 12... d5 {[%clk
0:02:45]} 13. Ne5 {[%clk 0:02:54.9]} 13... a4 {[%clk 0:02:39]} 14. Qc2 {[%clk
0:02:43.7]} 14... Nc7 {[%clk 0:02:39.1]} 15. Ndf3 {[%clk 0:02:37.9]} 15... Ne4
{[%clk 0:02:35.9]} 16. Bc1 {[%clk 0:02:31.6]} 16... Qe8 {[%clk 0:02:28.1]} 17.
Bf4 {[%clk 0:02:27.8]} 17... Nb5 {[%clk 0:02:26.6]} 18. e3 {[%clk 0:02:24.9]}
18... h6 {[%clk 0:02:26.2]} 19. h4 {[%clk 0:02:25.2]} 19... Kh7 {[%clk 0:02:23]}
20. Qe2 {[%clk 0:01:52.2]} 20... Bf6 {[%clk 0:02:11.7]} 21. Nxd7 {[%clk
0:01:37]} 21... Qxd7 {[%clk 0:02:11.6]} 22. Be5 {[%clk 0:01:37.4]} 22... g5
{[%clk 0:02:03.3]} 23. Bxf6 {[%clk 0:01:36.6]} 23... exf6 {[%clk 0:02:02.8]} 24.
hxg5 {[%clk 0:01:29.4]} 24... hxg5 {[%clk 0:02:03]} 25. Nd2 {[%clk 0:01:25.2]}
25... Nxd2 {[%clk 0:02:02.3]} 26. Qxd2 {[%clk 0:01:25.7]} 26... Kg7 {[%clk
0:01:59.3]} 27. Rfe1 {[%clk 0:01:12.4]} 27... Rh8 {[%clk 0:01:58.9]} 28. Kf1
{[%clk 0:01:12.6]} 28... Rae8 {[%clk 0:01:50.8]} 29. Ke2 {[%clk 0:01:11.3]}
29... f4 {[%clk 0:01:50.8]} 30. gxf4 {[%clk 0:01:11.3]} 30... gxf4 {[%clk
0:01:44.1]} 31. Bf3 {[%clk 0:01:04]} 31... fxe3 {[%clk 0:01:36.8]} 32. Rg1+
{[%clk 0:01:04.3]} 32... Kf8 {[%clk 0:01:36.8]} 33. fxe3 {[%clk 0:01:05]} 33...
Rh2+ {[%clk 0:01:35.6]} 34. Rg2 {[%clk 0:01:05.2]} 34... Rxg2+ {[%clk
0:01:35.1]} 35. Bxg2 {[%clk 0:01:06.1]} 35... Qg4+ {[%clk 0:01:35.4]} 36. Kf2
{[%clk 0:01:01.4]} 36... Qh4+ {[%clk 0:01:27]} 37. Kg1 {[%clk 0:00:58.6]} 37...
Qg3 {[%clk 0:01:23.6]} 38. Re1 {[%clk 0:00:32.4]} 38... Nxd4 {[%clk 0:01:22.8]}
39. Rf1 {[%clk 0:00:24.8]} 39... Qxe3+ {[%clk 0:01:11.3]} 40. Qxe3 {[%clk
0:00:25.1]} 40... Rxe3 {[%clk 0:01:12.2]} 41. Rxf6+ {[%clk 0:00:25.7]} 41... Ke7
{[%clk 0:01:12.6]} 42. Rh6 {[%clk 0:00:26.1]} 42... Kd7 {[%clk 0:01:07.4]} 43.
Rh7+ {[%clk 0:00:24.1]} 43... Re7 {[%clk 0:01:07.6]} 44. Bh3+ {[%clk 0:00:24.7]}
44... Kd8 {[%clk 0:01:03.7]} 45. Rh8+ {[%clk 0:00:25]} 45... Re8 {[%clk
0:01:02.2]} 46. Rh7 {[%clk 0:00:21.8]} 46... Rg8+ {[%clk 0:00:46.3]} 47. Kf2
{[%clk 0:00:21.6]} 47... Rf8+ {[%clk 0:00:46.5]} 48. Ke3 {[%clk 0:00:19.7]}
48... Nc2+ {[%clk 0:00:46.8]} 49. Kd2 {[%clk 0:00:19.3]} 49... Nxa3 {[%clk
0:00:47.1]} 50. Rd7+ {[%clk 0:00:17.3]} 50... Ke8 {[%clk 0:00:47.7]} 51. Rxb7
{[%clk 0:00:17.4]} 51... Nc4+ {[%clk 0:00:48.2]} 52. Ke1 {[%clk 0:00:15]} 52...
a3 {[%clk 0:00:46.6]} 53. Bd7+ {[%clk 0:00:13.9]} 53... Kd8 {[%clk 0:00:45.6]}
54. Bxc6 {[%clk 0:00:14.2]} 54... a2 {[%clk 0:00:43.5]} 55. Ra7 {[%clk
0:00:14.5]} 55... Ne3 {[%clk 0:00:28.7]} 56. Rxa2 {[%clk 0:00:11]} 56... Kc7
{[%clk 0:00:27.1]} 57. b5 {[%clk 0:00:09.5]} 57... Rf4 {[%clk 0:00:08.2]} 58.
Ra7+ {[%clk 0:00:08]} 58... Kb8 {[%clk 0:00:08.7]} 59. b6 {[%clk 0:00:07.2]}
59... Nc2+ {[%clk 0:00:07.3]} 60. Kd2 {[%clk 0:00:06.9]} 60... Rf2+ {[%clk
0:00:07.4]} 61. Kc3 {[%clk 0:00:06.3]} 61... d4+ {[%clk 0:00:08]} 62. Kc4 {[%clk
0:00:01.3]} 62... Ne3+ {[%clk 0:00:07.8]} 63. Kxd4 {[%clk 0:00:01.6]} 63... Nf5+
{[%clk 0:00:08.4]} 64. Ke5 {[%clk 0:00:01.9]} 64... Re2+ {[%clk 0:00:05.6]} 65.
Kxf5 {[%clk 0:00:01.7]} 65... Rf2+ {[%clk 0:00:06.5]} 66. Kg4 {[%clk 0:00:01.3]}
66... Rf4+ {[%clk 0:00:01.2]} 67. Kxf4 {[%clk 0:00:01.5]} 1-0

[Event "Early-Titled-Tuesday-Blitz-August-29-2023"]
[Site "Chess.com"]
[Date "2023.08.29"]
[Round "8"]
[White "shimastream"]
[Black "Vuk2000"]
[Result "1-0"]
[WhiteElo "2910"]
[BlackElo "2742"]
[TimeControl "180+1"]
[EndTime "9:28:28 PDT"]
[Termination "shimastream won by resignation"]

1. c4 {[%clk 0:03:00.9]} 1... e5 {[%clk 0:02:59.9]} 2. g3 {[%clk 0:02:58.8]}
2... Nc6 {[%clk 0:02:59.1]} 3. Bg2 {[%clk 0:02:58.3]} 3... g6 {[%clk 0:02:59.6]}
4. Nc3 {[%clk 0:02:57.7]} 4... Bg7 {[%clk 0:02:59.9]} 5. Rb1 {[%clk 0:02:57.7]}
5... d6 {[%clk 0:03:00.3]} 6. b4 {[%clk 0:02:57.1]} 6... a6 {[%clk 0:03:00]} 7.
a4 {[%clk 0:02:56.8]} 7... Be6 {[%clk 0:02:50.6]} 8. d3 {[%clk 0:02:56.6]} 8...
Qd7 {[%clk 0:02:49.4]} 9. b5 {[%clk 0:02:55.5]} 9... axb5 {[%clk 0:02:46.4]} 10.
cxb5 {[%clk 0:02:49.7]} 10... Na5 {[%clk 0:02:27.8]} 11. e3 {[%clk 0:02:47.1]}
11... Ne7 {[%clk 0:02:24]} 12. Nge2 {[%clk 0:02:47.1]} 12... O-O {[%clk
0:02:23.5]} 13. O-O {[%clk 0:02:47.4]} 13... c5 {[%clk 0:02:16.1]} 14. bxc6
{[%clk 0:02:31]} 14... bxc6 {[%clk 0:02:00]} 15. Ba3 {[%clk 0:02:30.6]} 15...
Rab8 {[%clk 0:01:59.7]} 16. Qc2 {[%clk 0:02:23.4]} 16... Bb3 {[%clk 0:01:25.5]}
17. Qd2 {[%clk 0:02:23.1]} 17... Be6 {[%clk 0:01:11.3]} 18. Ne4 {[%clk
0:02:10.7]} 18... Nb3 {[%clk 0:01:08.3]} 19. Qc2 {[%clk 0:02:10.9]} 19... c5
{[%clk 0:00:59.9]} 20. N2c3 {[%clk 0:02:10.8]} 20... h6 {[%clk 0:00:54.1]} 21.
Nb5 {[%clk 0:02:09.8]} 21... Rxb5 {[%clk 0:00:19]} 22. axb5 {[%clk 0:02:09.6]}
22... Na5 {[%clk 0:00:19.3]} 23. b6 {[%clk 0:01:56.4]} 23... Nac6 {[%clk
0:00:17]} 24. Rfc1 {[%clk 0:01:39.8]} 24... Rb8 {[%clk 0:00:15.1]} 25. b7 {[%clk
0:01:27]} 25... Bd5 {[%clk 0:00:12.3]} 26. Qa4 {[%clk 0:01:08]} 26... f5 {[%clk
0:00:10.1]} 27. Nc3 {[%clk 0:01:08.2]} 27... Bxg2 {[%clk 0:00:10]} 28. Kxg2
{[%clk 0:01:09.1]} 28... Rxb7 {[%clk 0:00:10.4]} 29. Qa8+ {[%clk 0:01:07]} 29...
Nd8 {[%clk 0:00:10.1]} 30. Rxb7 {[%clk 0:00:57.4]} 30... Qxb7+ {[%clk
0:00:04.4]} 31. Qxb7 {[%clk 0:00:57.9]} 31... Nxb7 {[%clk 0:00:05.3]} 32. Rb1
{[%clk 0:00:57.8]} 32... Nd8 {[%clk 0:00:05.6]} 33. Rb6 {[%clk 0:00:55.1]} 33...
Nf7 {[%clk 0:00:05.4]} 34. Nb5 {[%clk 0:00:54.7]} 34... Nd5 {[%clk 0:00:05.3]}
35. Rb7 {[%clk 0:00:43.8]} 35... Bf8 {[%clk 0:00:05.6]} 36. e4 {[%clk
0:00:40.1]} 36... fxe4 {[%clk 0:00:05.5]} 37. dxe4 {[%clk 0:00:41]} 37... Nf6
{[%clk 0:00:06.1]} 38. f3 {[%clk 0:00:40.4]} 38... g5 {[%clk 0:00:06.7]} 39. g4
{[%clk 0:00:33.1]} 39... h5 {[%clk 0:00:06.9]} 40. h3 {[%clk 0:00:33]} 40... Nd8
{[%clk 0:00:06.3]} 41. Ra7 {[%clk 0:00:30.5]} 41... Ne6 {[%clk 0:00:05.5]} 42.
Bc1 {[%clk 0:00:31]} 42... h4 {[%clk 0:00:03.2]} 43. Ra6 {[%clk 0:00:29.5]}
43... Ne8 {[%clk 0:00:03.4]} 44. Nc3 {[%clk 0:00:27.7]} 44... Kf7 {[%clk
0:00:03.8]} 45. Nd5 {[%clk 0:00:28]} 45... Nf6 {[%clk 0:00:04.2]} 46. Ra7+
{[%clk 0:00:26.8]} 46... Kg6 {[%clk 0:00:03.8]} 47. Nb6 {[%clk 0:00:21.4]} 47...
Ne8 {[%clk 0:00:02.9]} 48. Nc4 {[%clk 0:00:20.6]} 48... Nf6 {[%clk 0:00:02.6]}
49. Ra8 {[%clk 0:00:19.6]} 49... Kf7 {[%clk 0:00:02]} 50. Ra6 {[%clk 0:00:18.7]}
50... Ne8 {[%clk 0:00:01.1]} 51. Be3 {[%clk 0:00:18.6]} 51... Kf6 {[%clk
0:00:02]} 52. Kf1 {[%clk 0:00:17.7]} 52... Kf7 {[%clk 0:00:02.6]} 53. Ke2 {[%clk
0:00:18]} 53... Be7 {[%clk 0:00:03.3]} 54. Kd3 {[%clk 0:00:17.9]} 54... Nf4+
{[%clk 0:00:03.6]} 55. Bxf4 {[%clk 0:00:17.8]} 55... gxf4 {[%clk 0:00:04.2]} 56.
Nb6 {[%clk 0:00:13.7]} 56... Ke6 {[%clk 0:00:03.3]} 57. Nd5 {[%clk 0:00:13.9]}
57... Bd8 {[%clk 0:00:03.7]} 58. Ra7 {[%clk 0:00:13.8]} 58... Bg5 {[%clk
0:00:03.2]} 59. Kc4 {[%clk 0:00:13.4]} 59... Bd8 {[%clk 0:00:03.1]} 60. Kb5
{[%clk 0:00:10.6]} 60... Bg5 {[%clk 0:00:02.9]} 61. Kc4 {[%clk 0:00:07.8]} 61...
Bd8 {[%clk 0:00:03.3]} 62. Rb7 {[%clk 0:00:08.2]} 62... Bg5 {[%clk 0:00:03.4]}
63. Nc7+ {[%clk 0:00:08.3]} 63... Nxc7 {[%clk 0:00:03.9]} 64. Rxc7 {[%clk
0:00:09.2]} 64... Bf6 {[%clk 0:00:04.4]} 65. Rh7 {[%clk 0:00:09.8]} 65... Bg5
{[%clk 0:00:04.3]} 66. Rh5 {[%clk 0:00:08.8]} 66... Be7 {[%clk 0:00:03.1]} 67.
g5 {[%clk 0:00:08.3]} 67... Kf7 {[%clk 0:00:03.1]} 68. Rh7+ {[%clk 0:00:08.5]}
68... Ke6 {[%clk 0:00:02.7]} 69. g6 {[%clk 0:00:08.6]} 69... Bf6 {[%clk
0:00:02.9]} 70. Rb7 {[%clk 0:00:06.4]} 70... Be7 {[%clk 0:00:01.4]} 71. g7
{[%clk 0:00:06.8]} 71... Kf7 {[%clk 0:00:02.1]} 72. Rxe7+ {[%clk 0:00:06.8]}
72... Kg8 {[%clk 0:00:03]} 1-0

[Event "Early-Titled-Tuesday-Blitz-August-29-2023"]
[Site "Chess.com"]
[Date "2023.08.29"]
[Round "8"]
[White "valemava"]
[Black "JoliyRoger"]
[Result "0-1"]
[WhiteElo "2317"]
[BlackElo "2491"]
[TimeControl "180+1"]
[EndTime "9:28:46 PDT"]
[Termination "JoliyRoger won by checkmate"]

1. Nf3 {[%clk 0:03:00.9]} 1... Nf6 {[%clk 0:02:54.1]} 2. b4 {[%clk 0:03:00.4]}
2... d5 {[%clk 0:02:48.7]} 3. Bb2 {[%clk 0:02:59.9]} 3... c6 {[%clk 0:02:45.3]}
4. g3 {[%clk 0:02:59.1]} 4... Bg4 {[%clk 0:02:45.3]} 5. Bg2 {[%clk 0:02:59.1]}
5... e6 {[%clk 0:02:46]} 6. a3 {[%clk 0:02:58.7]} 6... Nbd7 {[%clk 0:02:45.4]}
7. O-O {[%clk 0:02:58.4]} 7... a5 {[%clk 0:02:44.9]} 8. c3 {[%clk 0:02:42.3]}
8... Bd6 {[%clk 0:02:39.5]} 9. d3 {[%clk 0:02:41.8]} 9... O-O {[%clk 0:02:38.8]}
10. Nbd2 {[%clk 0:02:41.4]} 10... Qe7 {[%clk 0:02:36.9]} 11. h3 {[%clk
0:02:38.7]} 11... Bh5 {[%clk 0:02:36.5]} 12. Re1 {[%clk 0:02:37.2]} 12... c5
{[%clk 0:02:08]} 13. Qc2 {[%clk 0:02:32.1]} 13... Rfc8 {[%clk 0:02:04.7]} 14. b5
{[%clk 0:02:31]} 14... Nb6 {[%clk 0:02:03.8]} 15. a4 {[%clk 0:02:29.9]} 15...
Bg6 {[%clk 0:01:58.3]} 16. Nh4 {[%clk 0:02:24.7]} 16... Bh5 {[%clk 0:01:50.2]}
17. e4 {[%clk 0:02:22.5]} 17... dxe4 {[%clk 0:01:47]} 18. dxe4 {[%clk
0:02:19.7]} 18... Nfd7 {[%clk 0:01:46.7]} 19. f4 {[%clk 0:02:18.8]} 19... Bxf4
{[%clk 0:01:40.1]} 20. gxf4 {[%clk 0:02:06.7]} 20... Qxh4 {[%clk 0:01:39.7]} 21.
Rf1 {[%clk 0:02:06.9]} 21... c4 {[%clk 0:01:34.8]} 22. Rae1 {[%clk 0:01:56.6]}
22... Nc5 {[%clk 0:01:34.2]} 23. Bc1 {[%clk 0:01:50.1]} 23... Ncxa4 {[%clk
0:01:21.1]} 24. e5 {[%clk 0:01:44.6]} 24... Bg6 {[%clk 0:01:20.8]} 25. Ne4
{[%clk 0:01:43.2]} 25... Nc5 {[%clk 0:01:18.2]} 26. Be3 {[%clk 0:01:41]} 26...
Nxe4 {[%clk 0:01:13.5]} 27. Bxe4 {[%clk 0:01:41.9]} 27... Nd5 {[%clk 0:01:11]}
28. Bxg6 {[%clk 0:01:22.8]} 28... hxg6 {[%clk 0:01:10.8]} 29. Qg2 {[%clk
0:01:19.9]} 29... a4 {[%clk 0:01:05.3]} 30. f5 {[%clk 0:01:14.2]} 30... Nxe3
{[%clk 0:00:59.2]} 31. Rxe3 {[%clk 0:01:11]} 31... gxf5 {[%clk 0:00:59.8]} 32.
Rg3 {[%clk 0:01:07.9]} 32... Qh6 {[%clk 0:01:00.1]} 33. Qxb7 {[%clk 0:00:53.4]}
33... a3 {[%clk 0:00:59.9]} 34. Ra1 {[%clk 0:00:44.7]} 34... a2 {[%clk
0:00:59.1]} 35. Qg2 {[%clk 0:00:43.7]} 35... Ra5 {[%clk 0:00:44.7]} 36. b6
{[%clk 0:00:43.2]} 36... Rb5 {[%clk 0:00:42.9]} 37. Rxa2 {[%clk 0:00:37.1]}
37... Rxb6 {[%clk 0:00:42.7]} 38. Kh2 {[%clk 0:00:37.4]} 38... Rcb8 {[%clk
0:00:41.5]} 39. Ra8 {[%clk 0:00:19.2]} 39... g6 {[%clk 0:00:40.8]} 40. Rxb8+
{[%clk 0:00:14.6]} 40... Rxb8 {[%clk 0:00:41.7]} 41. Qe2 {[%clk 0:00:13.3]}
41... Qf4 {[%clk 0:00:37.9]} 42. Kg2 {[%clk 0:00:12.9]} 42... Rd8 {[%clk
0:00:34.7]} 43. Rf3 {[%clk 0:00:12.1]} 43... Qc1 {[%clk 0:00:25.9]} 44. Rf1
{[%clk 0:00:11.2]} 44... Qxc3 {[%clk 0:00:25]} 45. Rf2 {[%clk 0:00:10.6]} 45...
Rd3 {[%clk 0:00:24]} 46. Kf1 {[%clk 0:00:09]} 46... Re3 {[%clk 0:00:21.6]} 47.
Qb2 {[%clk 0:00:08.5]} 47... Qe1+ {[%clk 0:00:19.4]} 48. Kg2 {[%clk 0:00:08.7]}
48... Rxe5 {[%clk 0:00:18.8]} 49. Qb8+ {[%clk 0:00:08.6]} 49... Kg7 {[%clk
0:00:19.4]} 50. Qb2 {[%clk 0:00:08.4]} 50... c3 {[%clk 0:00:19]} 51. Qc2 {[%clk
0:00:08.7]} 51... Qe3 {[%clk 0:00:15]} 52. h4 {[%clk 0:00:08.9]} 52... f4 {[%clk
0:00:14]} 53. Rf3 {[%clk 0:00:09.3]} 53... Qe2+ {[%clk 0:00:14]} 54. Rf2 {[%clk
0:00:10]} 54... Qxc2 {[%clk 0:00:13.5]} 55. Rxc2 {[%clk 0:00:10.7]} 55... Re3
{[%clk 0:00:14.4]} 56. Kf2 {[%clk 0:00:11.1]} 56... e5 {[%clk 0:00:14.4]} 57.
Rc1 {[%clk 0:00:11.3]} 57... Kf6 {[%clk 0:00:13]} 58. Ra1 {[%clk 0:00:11.9]}
58... Kf5 {[%clk 0:00:13.3]} 59. Ra6 {[%clk 0:00:12.5]} 59... f6 {[%clk
0:00:13.8]} 60. Rb6 {[%clk 0:00:12.1]} 60... Rh3 {[%clk 0:00:13.4]} 61. Rc6
{[%clk 0:00:12.1]} 61... c2 {[%clk 0:00:12.5]} 62. Kg2 {[%clk 0:00:12.2]} 62...
Rxh4 {[%clk 0:00:12.4]} 63. Rxc2 {[%clk 0:00:11.7]} 63... Rg4+ {[%clk
0:00:13.3]} 64. Kh2 {[%clk 0:00:11.5]} 64... Rg3 {[%clk 0:00:14.2]} 65. Rc8
{[%clk 0:00:10.8]} 65... Re3 {[%clk 0:00:14.1]} 66. Rc5 {[%clk 0:00:09.9]} 66...
g5 {[%clk 0:00:14.5]} 67. Kg2 {[%clk 0:00:10]} 67... g4 {[%clk 0:00:15.1]} 68.
Kf2 {[%clk 0:00:10.8]} 68... Ra3 {[%clk 0:00:15.4]} 69. Rc1 {[%clk 0:00:09.8]}
69... g3+ {[%clk 0:00:15.6]} 70. Kg2 {[%clk 0:00:10]} 70... Kg4 {[%clk
0:00:16.2]} 71. Kg1 {[%clk 0:00:09.5]} 71... Ra2 {[%clk 0:00:16.5]} 72. Kh1
{[%clk 0:00:09.4]} 72... f5 {[%clk 0:00:16.2]} 73. Kg1 {[%clk 0:00:09.6]} 73...
e4 {[%clk 0:00:16.4]} 74. Kh1 {[%clk 0:00:10]} 74... e3 {[%clk 0:00:16.7]} 75.
Kg1 {[%clk 0:00:09.2]} 75... Rd2 {[%clk 0:00:16.5]} 76. Kh1 {[%clk 0:00:08.7]}
76... e2 {[%clk 0:00:17.1]} 77. Rg1 {[%clk 0:00:08.6]} 77... Rd1 {[%clk
0:00:17.2]} 78. Kg2 {[%clk 0:00:09.1]} 78... f3+ {[%clk 0:00:17.3]} 79. Kh1
{[%clk 0:00:08.6]} 79... Rxg1+ {[%clk 0:00:17.3]} 80. Kxg1 {[%clk 0:00:09]}
80... e1=Q# {[%clk 0:00:17.8]} 0-1

[Event "Early-Titled-Tuesday-Blitz-August-29-2023"]
[Site "Chess.com"]
[Date "2023.08.29"]
[Round "8"]
[White "fastestmindalive"]
[Black "BlueWizzard"]
[Result "0-1"]
[WhiteElo "2731"]
[BlackElo "2904"]
[TimeControl "180+1"]
[EndTime "9:29:07 PDT"]
[Termination "BlueWizzard won by resignation"]

1. e4 {[%clk 0:02:57.3]} 1... e6 {[%clk 0:02:56.9]} 2. d4 {[%clk 0:02:54.2]}
2... d5 {[%clk 0:02:57.3]} 3. Nc3 {[%clk 0:02:54.7]} 3... Nf6 {[%clk 0:02:55.3]}
4. Bg5 {[%clk 0:02:53.5]} 4... dxe4 {[%clk 0:02:49.6]} 5. Nxe4 {[%clk
0:02:48.4]} 5... Nbd7 {[%clk 0:02:50]} 6. Nxf6+ {[%clk 0:02:43.3]} 6... Nxf6
{[%clk 0:02:50.9]} 7. Nf3 {[%clk 0:02:40.3]} 7... c5 {[%clk 0:02:45.9]} 8. dxc5
{[%clk 0:02:23.6]} 8... Qa5+ {[%clk 0:02:43.4]} 9. c3 {[%clk 0:02:19.6]} 9...
Qxc5 {[%clk 0:02:42.9]} 10. Bd3 {[%clk 0:02:17.2]} 10... Bd7 {[%clk 0:02:39.5]}
11. O-O {[%clk 0:02:14.9]} 11... Qc7 {[%clk 0:02:29.6]} 12. Qe2 {[%clk
0:02:13.2]} 12... Be7 {[%clk 0:02:24.2]} 13. Ne5 {[%clk 0:02:09.6]} 13... O-O
{[%clk 0:02:23.2]} 14. Nxd7 {[%clk 0:02:06.8]} 14... Qxd7 {[%clk 0:02:23.7]} 15.
Rfd1 {[%clk 0:02:02.5]} 15... Qc7 {[%clk 0:02:23.8]} 16. Qf3 {[%clk 0:01:25.9]}
16... Rfd8 {[%clk 0:02:14.6]} 17. Qg3 {[%clk 0:01:23.3]} 17... Qxg3 {[%clk
0:02:10.9]} 18. hxg3 {[%clk 0:01:24.2]} 18... Nd5 {[%clk 0:02:11.5]} 19. Bxe7
{[%clk 0:01:19.7]} 19... Nxe7 {[%clk 0:02:12.4]} 20. Be4 {[%clk 0:01:20.3]}
20... Kf8 {[%clk 0:02:01.8]} 21. Bxb7 {[%clk 0:01:18.1]} 21... Rxd1+ {[%clk
0:02:00]} 22. Rxd1 {[%clk 0:01:17.2]} 22... Rb8 {[%clk 0:02:00.5]} 23. Bf3
{[%clk 0:01:11.2]} 23... Ng6 {[%clk 0:01:56.3]} 24. b4 {[%clk 0:01:02.6]} 24...
Ne5 {[%clk 0:01:56.3]} 25. Rd6 {[%clk 0:00:49.2]} 25... Rc8 {[%clk 0:01:46.2]}
26. Ra6 {[%clk 0:00:49]} 26... Rxc3 {[%clk 0:01:35.7]} 27. Rxa7 {[%clk
0:00:48.8]} 27... Rc1+ {[%clk 0:01:28.9]} 28. Kh2 {[%clk 0:00:48.6]} 28... Rb1
{[%clk 0:01:25.8]} 29. Rb7 {[%clk 0:00:44.9]} 29... Ra1 {[%clk 0:01:16.6]} 30.
Ra7 {[%clk 0:00:38.8]} 30... Rb1 {[%clk 0:01:16.5]} 31. a3 {[%clk 0:00:38.8]}
31... g5 {[%clk 0:01:15]} 32. g4 {[%clk 0:00:38.3]} 32... Rb3 {[%clk 0:01:05.7]}
33. Ra5 {[%clk 0:00:22.8]} 33... Nxf3+ {[%clk 0:00:54.1]} 34. gxf3 {[%clk
0:00:22.2]} 34... Rxf3 {[%clk 0:00:55]} 35. Kg2 {[%clk 0:00:22.3]} 35... Rb3
{[%clk 0:00:54.1]} 36. b5 {[%clk 0:00:18.5]} 36... Ke7 {[%clk 0:00:52.7]} 37. a4
{[%clk 0:00:17.1]} 37... Kd6 {[%clk 0:00:53]} 38. Ra7 {[%clk 0:00:15.6]} 38...
Rb4 {[%clk 0:00:46.8]} 39. f3 {[%clk 0:00:12.9]} 39... f5 {[%clk 0:00:46.2]} 40.
gxf5 {[%clk 0:00:12.3]} 40... exf5 {[%clk 0:00:47.1]} 41. Rxh7 {[%clk
0:00:10.6]} 41... Ke5 {[%clk 0:00:45.1]} 42. Rc7 {[%clk 0:00:02.4]} 42... Kf4
{[%clk 0:00:45]} 43. Rc2 {[%clk 0:00:02.5]} 43... Ke3 {[%clk 0:00:43]} 44. Ra2
{[%clk 0:00:02.4]} 44... Kf4 {[%clk 0:00:35.8]} 45. a5 {[%clk 0:00:02.2]} 45...
Rxb5 {[%clk 0:00:35.8]} 46. a6 {[%clk 0:00:02.8]} 46... Rb8 {[%clk 0:00:36.5]}
47. a7 {[%clk 0:00:03.3]} 47... Ra8 {[%clk 0:00:37.2]} 48. Ra5 {[%clk
0:00:03.5]} 48... g4 {[%clk 0:00:35.2]} 49. Ra4+ {[%clk 0:00:03.5]} 49... Kg5
{[%clk 0:00:33.2]} 50. f4+ {[%clk 0:00:04]} 50... Kf6 {[%clk 0:00:30.3]} 51. Kg3
{[%clk 0:00:04.9]} 51... Ke6 {[%clk 0:00:23.6]} 52. Ra3 {[%clk 0:00:04.6]} 52...
Kd5 {[%clk 0:00:23.9]} 53. Kh4 {[%clk 0:00:05.1]} 53... Ke4 {[%clk 0:00:22.9]}
54. Kg3 {[%clk 0:00:05.5]} 54... Kd4 {[%clk 0:00:21.8]} 55. Ra4+ {[%clk
0:00:05.9]} 55... Kd5 {[%clk 0:00:19.8]} 56. Kh4 {[%clk 0:00:05.7]} 56... Ke6
{[%clk 0:00:17.8]} 57. Ra5 {[%clk 0:00:05.7]} 57... Kf6 {[%clk 0:00:18]} 58. Kg3
{[%clk 0:00:05.8]} 58... Ke6 {[%clk 0:00:18.3]} 59. Ra3 {[%clk 0:00:04.9]} 59...
Kd5 {[%clk 0:00:18.7]} 60. Ra4 {[%clk 0:00:05.5]} 60... Ke6 {[%clk 0:00:19]} 61.
Ra5 {[%clk 0:00:06]} 61... Kf6 {[%clk 0:00:19.4]} 62. Ra6+ {[%clk 0:00:06.2]}
62... Kf7 {[%clk 0:00:18.9]} 63. Kh4 {[%clk 0:00:07.1]} 63... Ke7 {[%clk
0:00:17.9]} 64. Ra3 {[%clk 0:00:07.6]} 64... Kf6 {[%clk 0:00:18.2]} 65. Ra6+
{[%clk 0:00:07.7]} 65... Kf7 {[%clk 0:00:18.5]} 66. Kg5 {[%clk 0:00:08.1]} 66...
g3 {[%clk 0:00:18.4]} 67. Kxf5 {[%clk 0:00:08.1]} 67... g2 {[%clk 0:00:18.6]}
68. Ra1 {[%clk 0:00:08.4]} 68... g1=Q {[%clk 0:00:18.1]} 69. Rxg1 {[%clk
0:00:08.9]} 69... Rxa7 {[%clk 0:00:19]} 70. Kg5 {[%clk 0:00:07.8]} 70... Ra8
{[%clk 0:00:18.8]} 71. Rb1 {[%clk 0:00:06.5]} 71... Ra7 {[%clk 0:00:18.6]} 72.
Rh1 {[%clk 0:00:05.9]} 72... Kg7 {[%clk 0:00:17.7]} 73. f5 {[%clk 0:00:06.6]}
73... Ra5 {[%clk 0:00:17.1]} 74. Rb1 {[%clk 0:00:06.4]} 74... Ra7 {[%clk
0:00:17.4]} 75. Rb6 {[%clk 0:00:06.1]} 75... Rc7 {[%clk 0:00:17.2]} 76. Rg6+
{[%clk 0:00:06.5]} 76... Kf7 {[%clk 0:00:17.3]} 77. Rh6 {[%clk 0:00:07.1]} 77...
Rc1 {[%clk 0:00:15.2]} 78. Rh7+ {[%clk 0:00:07]} 78... Kg8 {[%clk 0:00:15.1]}
79. Re7 {[%clk 0:00:06]} 79... Rc6 {[%clk 0:00:14.4]} 80. Rb7 {[%clk 0:00:06.1]}
80... Kf8 {[%clk 0:00:14.3]} 81. Kf4 {[%clk 0:00:06.2]} 81... Ra6 {[%clk
0:00:14.1]} 82. Ke5 {[%clk 0:00:06.8]} 82... Rc6 {[%clk 0:00:14]} 83. Rb8+
{[%clk 0:00:06.8]} 83... Kf7 {[%clk 0:00:14.3]} 84. Rb7+ {[%clk 0:00:07.4]}
84... Kf8 {[%clk 0:00:14.8]} 85. Ra7 {[%clk 0:00:08]} 85... Rb6 {[%clk
0:00:15.1]} 86. Kd5 {[%clk 0:00:07.8]} 86... Rb1 {[%clk 0:00:14.1]} 87. Rd7
{[%clk 0:00:06.7]} 87... Re1 {[%clk 0:00:14.1]} 88. Kd4 {[%clk 0:00:05.5]} 88...
Rd1+ {[%clk 0:00:14.1]} 89. Ke5 {[%clk 0:00:05.2]} 89... Rxd7 {[%clk 0:00:15]}
90. Kf6 {[%clk 0:00:05.7]} 90... Rf7+ {[%clk 0:00:15.9]} 91. Kg6 {[%clk
0:00:05.9]} 91... Rb7 {[%clk 0:00:15.8]} 92. f6 {[%clk 0:00:06.2]} 92... Rb6
{[%clk 0:00:16.7]} 0-1